Workbook

Sheet MENU
A1: =TODAY() -> 2015-09-11

Sheet Simulador
A1: SIMULADOR DE BENEFÍCIO PLANO CD | L1: =TODAY() -> 2015-09-11
B2: Unidade Previdenciária ECOS (UPE) = | J2: 157.66 | O2: FALSE | P2: 1 | Q2: F
O3: TRUE | P3: 2 | Q3: M
B4: Dados de Entrada: | O4: CONSERVADOR - alocação de 100% da Conta de Participante na carteira Conservadora, composta por ativos enquadrados nos segmentos de Renda Fixa e Investimentos Estruturados, considerados de baixo risco e com baixa volatilidade de preço
B5: Qual sua data de nascimento ? | L5: =RIGHT(J5,4) ->  | O5: ARROJADO 30 - alocação de 30% da Conta de Participante na carteira Arrojada, composta por ativos enquadrados nos segmentos de Renda Variável, Investimentos Estruturados e Investimentos no Exterior - sujeitos à alta volatilidade de preço. O saldo remanescente é alocado no perfil conservador.
L6: IDADE ATUAL | O6: ARROJADO 40 - alocação de 40% da Conta de Participante na carteira Arrojada, composta por ativos enquadrados nos segmentos de Renda Variável, Investimentos Estruturados e Investimentos no Exterior - sujeitos à alta volatilidade de preço. O saldo remanescente é alocado no perfil conservador.
B7: Com qual idade deseja receber o benefício? (a partir de 60 anos) | H7: =IFERROR(IF(L7<=J7,"","IDADE Ñ PERMITIDA"),"") ->  | L7: =YEAR(L1)-L5 ->  | O7: ARROJADO 50 - alocação de 50% da Conta de Participante na carteira Arrojada, composta por ativos enquadrados nos segmentos de Renda Variável, Investimentos Estruturados e Investimentos no Exterior - sujeitos à alta volatilidade de preço. O saldo remanescente é alocado no perfil conservador.
B9: Qual o seu Salário Atual? | O9: Taxa Adm RF | P9: Taxa Adm RV
O10: 0.0075 | P10: 0.015
B11: Sexo (F/M) =
O12: Saldo projetado = | P12: =IF(J7>=65,0,(65-'Cálculo Participante'!B10)*12*2*H53) -> 
O13: Salário Mínimo = | P13: 724
B14: Indique abaixo qual o seu Perfil de Investimento | L14: =IF('Cálculo Participante'!B10>=60,G17=1,"") -> 
B15: =IFERROR(IF(L7=60,"Sua idade é igual ou maior a 60 anos, escolha o Perfil CONSERVADOR - o regulamento do plano não permite que você tenha rentabilidade baseado em investimentos de renda variável ",""),"") -> 
L16: PERFIL | O16: Percentuais alocação perfis
G17: 1 | H17: Seu Perfil é: | L17: =IF(L7>=60,1,G17) ->  | O17: =IF(G17=1,100%,IF(G17=2,70%,IF(G17=3,60%,50%))) -> 1 | P17: =IF(G17=1,0%,IF(G17=2,30%,IF(G17=3,40%,50%))) -> 0
H18: =IFERROR(IF(L17=1,O4,IF(G17=2,O5,IF(G17=3,O6,O7))),"") -> 
B27: Obs: O Perfil de Investimento pode ser alterado nos meses de junho e dezembro. Caso o participante não altere, fica mantida a última opção.
B28: Histórico de Rentabilidades
B29: A título de informação complementar, elaboramos uma tabela com a rentabilidade real (o que exclui efeito da inflação) histórica de cada carteira.
B32: Indique a Rentabilidade CARTEIRA CONSERVADORA (% a.a.) =
B33: Indique a Rentabilidade CARTEIRA ARROJADA (% a.a.) =
B34: A contribuição efetuada pela Patrcinadora é direcionada para o Perfil Conservador.
B35: Apenas está sujeito a opção de perfil o recurso aportado pelo Participante.
B36: =1+(I32/100) -> 1 | D36: =IF(B37="",(I33/100)+1,1) -> 1
B37: =IFERROR(IF(L17=1,"Seu perfil é CONSERVADOR - não rentabiliza o patrimônio por Renda Variável - Deixar célula em branco para rentabilidade do PERFIL ARROJADO",""),"") -> 
B39: Aportes (contribuições) extras
B40: Indique o Saldo Atual que você tem acumulado no Plano:
B42: Se deseja fazer aportes MENSAIS, indique o valor:
B44: Se deseja fazer aportes TRIMESTRAIS, indique o valor:
B46: Se deseja fazer aportes SEMESTRAIS, indique o valor:
B48: Se deseja fazer aportes ANUAIS, indique o valor:
B51: Contribuições e Saldo de Conta Total
C53: CONTRIBUIÇÃO DO PARTICIPANTE= | H53: =IFERROR('Tab Contr'!C12/2,"") -> 
C55: CONTRIBUIÇÃO DA PATROCINADORA= | H55: =H53 -> 
C57: CONTRIBUIÇÃO RISCO (exclusiva p/ PATROCINADORA E AUTOPATROCINADO) = | H57: =IFERROR(IF(L7>=65,0,0.0191%*P12),"") ->  | J57: =SUM(H57:H60) -> 0
C59: CONTRIBUIÇÃO ADMINISTRATIVA (exclusiva p/ PATROCINADORA e AUTOPATROCINADO) = | H59: =0.05%*J9 -> 0
C61: SALDO DE CONTA TOTAL = | H61: =IFERROR('Tab Contr'!O57,"") -> 
B65: Formas de Benefício
B66: OPÇÃO 01 - Nº DE PARCELAS:
B67: Indique o Nº parcelas (60 a 240) que deseja receber o benefício = | J67: 240
B69: BENEFÍCIO MENSAL = | J69: =IFERROR(IF((H61/J67)<=D73,IF(J67=60,"ESCOLHER OUTRA FORMA DE RECEBIMENTO","DIMINUIR Nº PARCELAS"),H61/J67),"") -> 
B71: =IFERROR(IF(H61/J67<D73,"O valor da parcela é < 1 UPE, então seu o benefício deverá ser pago em parcela única de:",""),"") ->  | J71: =IFERROR(IF(H61/J67<=J2,H61,""),"") -> 
C73: UPE atual = | D73: =J2 -> 157.66 | E73: UPE projetada = | H73: =IFERROR(J2*(1.02)^'Tab Contr'!A10,"") -> 
B75: OPÇÃO 02 - % DO SALDO DE CONTA:
B76: Indique o % do Saldo de Conta Total (0,1 até 1,5%) = | J76: 0.7
B78: BENEFÍCIO MENSAL = | J78: =IFERROR(IF((($H$61*$J$76%)<'Tab Contr'!C1),IF($J$76%=1.5%,"ESCOLHER OUTRA FORMA DE RECEBIMENTO","AUMENTAR PERCENTUAL"),$H$61*$J$76%),"") -> 
B81: OPÇÃO 03 - FATOR ATUARIAL:
B82: Fator atuarial = | J82: =IFERROR(IF(J11="F",'Cálculo Participante'!E25,'Cálculo Participante'!E10),"") -> 0.003708355923
B84: BENEFÍCIO MENSAL = | J84: =IFERROR(H61*J82,"") -> 
B86: Este benefício será recalculado anualmente de acordo com o saldo remanescente e a idade do participante. Ou seja, NÃO SE TRATA DE BENEFÍCIO VITALÍCIO, pois uma vez zerado o saldo, o benefício será encerrado.
B88: Observações:
B89: 1. A Renda apresentada no Simulador é uma estimativa.
B90: 2. O valor efetivo somente será calculado no momento do requerimento do benefício, com base no valor acumulado no período.
B91: 3. Os valores informados são meramente exemplificativos, não constituindo obrigação regulamentar da Fundação ECOS.
B92: 4. É indicado que periodicamente os participantes refaçam sua simulação atualizando os valores e premissas.

Sheet Tab Contr
B1: UPE = | C1: =Simulador!J2 -> 157.66
B2: Tabela de Contribuição | F2: RF | G2: RV
B3: SAL | C3: SAL EM UPE | D3: PERC | F3: =1-Simulador!O10 -> 0.9925 | G3: =1-Simulador!P10 -> 0.985
C4: =C1*5-0.01 -> 788.29 | D4: 0.02
C5: =C1*15-0.01 -> 2364.89 | D5: 0.03
C6: =C1*25-0.01 -> 3941.49 | D6: 0.04
C7: =C1*50-0.01 -> 7882.99 | D7: 0.05
C8: =C1*50 -> 7883 | D8: 0.06
A10: =IF(Simulador!J7-Simulador!L7<0,3,Simulador!J7-Simulador!L7) ->  | E10: Carteiras | H10: Adicional mensal | J10: Adicional trimestral | L10: Adicional semestral | N10: Adicional anual | O10: Saldo Total
C11: Contr mensal | D11: Contr anual | E11: RF | F11: RV | G11: Total | H11: Contr adicional | I11: No ano | J11: Contr adicional | K11: No ano | L11: Contr adicional | M11: No ano | N11: Contr adicional | O11: RF + RV
A12: 1 | B12: =Simulador!J9 -> 0 | C12: =2*IF(A12>$A$10,0,IF(B12<=$C$4,(B12*$D$4),IF(B12<=$C$5,(B12*$D$5),IF(B12<=$C$6,(B12*$D$6),IF(B12<=$C$7,(B12*$D$7),(B12*$D$8)))))) ->  | D12: =12*C12 ->  | E12: =(Simulador!O17*(D12+I12+K12+M12+N12+Simulador!I40)) ->  | F12: =(Simulador!P17*(D12+I12+K12+M12+N12+Simulador!I40)) ->  | G12: =E12+F12 ->  | H12: =Simulador!I42 -> 0 | I12: =Simulador!$I$42*12 -> 0 | J12: =Simulador!I44 -> 0 | K12: =Simulador!$I$44*4 -> 0 | L12: =Simulador!I46 -> 0 | M12: =Simulador!$I$46*2 -> 0 | N12: =Simulador!I48 -> 0 | O12: =IF(A12=$A$10,G12,0) -> 
A13: 2 | B13: =B12*1.02 -> 0 | C13: =2*IF(A13>$A$10,0,IF(B13<=$C$4*1.02^A13,(B13*$D$4),IF(B13<=$C$5*1.02^A13,(B13*$D$5),IF(B13<=$C$6*1.02^A13,(B13*$D$6),IF(B13<=$C$7*1.02^A13,(B13*$D$7),(B13*$D$8)))))) ->  | D13: =(C13*12) ->  | E13: =(E12*Simulador!$B$36*$F$3+Simulador!$O$17*(D13+I13+K13+M13+N13)) ->  | F13: =(F12*Simulador!$D$36*$G$3+Simulador!$P$17*(D13+I13+K13+M13+N13)) ->  | G13: =E13+F13 ->  | H13: =H12*1.02 -> 0 | I13: =(H13*12) -> 0 | J13: =J12*1.02 -> 0 | K13: =(J13*4) -> 0 | L13: =L12*1.02 -> 0 | M13: =(L13*2) -> 0 | N13: =N12*1.02 -> 0 | O13: =IF(A13=$A$10,G13,0) -> 
A14: =A13+1 -> 3 | B14: =B13*1.02 -> 0 | C14: =2*IF(A14>$A$10,0,IF(B14<=$C$4*1.02^A14,(B14*$D$4),IF(B14<=$C$5*1.02^A14,(B14*$D$5),IF(B14<=$C$6*1.02^A14,(B14*$D$6),IF(B14<=$C$7*1.02^A14,(B14*$D$7),(B14*$D$8)))))) ->  | D14: =(C14*12) ->  | E14: =(E13*Simulador!$B$36*$F$3+Simulador!$O$17*(D14+I14+K14+M14+N14)) ->  | F14: =(F13*Simulador!$D$36*$G$3+Simulador!$P$17*(D14+I14+K14+M14+N14)) ->  | H14: =H13*1.02 -> 0 | I14: 0 | J14: =J13*1.02 -> 0 | K14: =(J14*4) -> 0 | L14: =L13*1.02 -> 0 | M14: =(L14*2) -> 0 | N14: =N13*1.02 -> 0 | O14: =IF(A14=$A$10,G14,0) -> 
A15: =A14+1 -> 4 | B15: =B14*1.02 -> 0 | C15: =2*IF(A15>$A$10,0,IF(B15<=$C$4*1.02^A15,(B15*$D$4),IF(B15<=$C$5*1.02^A15,(B15*$D$5),IF(B15<=$C$6*1.02^A15,(B15*$D$6),IF(B15<=$C$7*1.02^A15,(B15*$D$7),(B15*$D$8)))))) ->  | E15: =(E14*Simulador!$B$36*$F$3+Simulador!$O$17*(D15+I15+K15+M15+N15)) ->  | F15: =(F14*Simulador!$D$36*$G$3+Simulador!$P$17*(D15+I15+K15+M15+N15)) ->  | H15: 0 | I15: 0 | J15: 0 | K15: 0 | L15: 0 | M15: 0 | N15: 0
A16: 5 | B16: 0 | C16: =2*IF(A16>$A$10,0,IF(B16<=$C$4*1.02^A16,(B16*$D$4),IF(B16<=$C$5*1.02^A16,(B16*$D$5),IF(B16<=$C$6*1.02^A16,(B16*$D$6),IF(B16<=$C$7*1.02^A16,(B16*$D$7),(B16*$D$8)))))) ->  | E16: =(E15*Simulador!$B$36*$F$3+Simulador!$O$17*(D16+I16+K16+M16+N16)) ->  | F16: =(F15*Simulador!$D$36*$G$3+Simulador!$P$17*(D16+I16+K16+M16+N16)) ->  | H16: 0 | I16: 0 | J16: 0 | K16: 0 | L16: 0 | M16: 0 | N16: 0
A17: 6 | B17: 0 | E17: =(E16*Simulador!$B$36*$F$3+Simulador!$O$17*(D17+I17+K17+M17+N17)) ->  | F17: =(F16*Simulador!$D$36*$G$3+Simulador!$P$17*(D17+I17+K17+M17+N17)) ->  | H17: 0 | I17: 0 | J17: 0 | K17: 0 | L17: 0 | M17: 0 | N17: 0
A18: 7 | B18: 0 | E18: =(E17*Simulador!$B$36*$F$3+Simulador!$O$17*(D18+I18+K18+M18+N18)) ->  | F18: =(F17*Simulador!$D$36*$G$3+Simulador!$P$17*(D18+I18+K18+M18+N18)) ->  | H18: 0 | I18: 0 | J18: 0 | K18: 0 | L18: 0 | M18: 0 | N18: 0
A19: 8 | B19: 0 | E19: =(E18*Simulador!$B$36*$F$3+Simulador!$O$17*(D19+I19+K19+M19+N19)) ->  | F19: =(F18*Simulador!$D$36*$G$3+Simulador!$P$17*(D19+I19+K19+M19+N19)) ->  | H19: 0 | I19: 0 | J19: 0 | K19: 0 | L19: 0 | M19: 0 | N19: 0
A20: 9 | B20: 0 | E20: =(E19*Simulador!$B$36*$F$3+Simulador!$O$17*(D20+I20+K20+M20+N20)) ->  | F20: =(F19*Simulador!$D$36*$G$3+Simulador!$P$17*(D20+I20+K20+M20+N20)) ->  | H20: 0 | I20: 0 | J20: 0 | K20: 0 | L20: 0 | M20: 0 | N20: 0
A21: 10 | B21: 0 | E21: =(E20*Simulador!$B$36*$F$3+Simulador!$O$17*(D21+I21+K21+M21+N21)) ->  | F21: =(F20*Simulador!$D$36*$G$3+Simulador!$P$17*(D21+I21+K21+M21+N21)) ->  | H21: 0 | I21: 0 | J21: 0 | K21: 0 | L21: 0 | M21: 0 | N21: 0
A22: 11 | B22: 0 | E22: =(E21*Simulador!$B$36*$F$3+Simulador!$O$17*(D22+I22+K22+M22+N22)) ->  | F22: =(F21*Simulador!$D$36*$G$3+Simulador!$P$17*(D22+I22+K22+M22+N22)) ->  | H22: 0 | I22: 0 | J22: 0 | K22: 0 | L22: 0 | M22: 0 | N22: 0
A23: 12 | B23: 0 | E23: =(E22*Simulador!$B$36*$F$3+Simulador!$O$17*(D23+I23+K23+M23+N23)) ->  | F23: =(F22*Simulador!$D$36*$G$3+Simulador!$P$17*(D23+I23+K23+M23+N23)) ->  | H23: 0 | I23: 0 | J23: 0 | K23: 0 | L23: 0 | M23: 0 | N23: 0
A24: 13 | B24: 0 | E24: =(E23*Simulador!$B$36*$F$3+Simulador!$O$17*(D24+I24+K24+M24+N24)) ->  | F24: =(F23*Simulador!$D$36*$G$3+Simulador!$P$17*(D24+I24+K24+M24+N24)) ->  | H24: 0 | I24: 0 | J24: 0 | K24: 0 | L24: 0 | M24: 0 | N24: 0
A25: 14 | B25: 0 | E25: =(E24*Simulador!$B$36*$F$3+Simulador!$O$17*(D25+I25+K25+M25+N25)) ->  | F25: =(F24*Simulador!$D$36*$G$3+Simulador!$P$17*(D25+I25+K25+M25+N25)) ->  | H25: 0 | I25: 0 | J25: 0 | K25: 0 | L25: 0 | M25: 0 | N25: 0
A26: 15 | B26: 0 | E26: =(E25*Simulador!$B$36*$F$3+Simulador!$O$17*(D26+I26+K26+M26+N26)) ->  | F26: =(F25*Simulador!$D$36*$G$3+Simulador!$P$17*(D26+I26+K26+M26+N26)) ->  | H26: 0 | I26: 0 | J26: 0 | K26: 0 | L26: 0 | M26: 0 | N26: 0
A27: 16 | B27: 0 | E27: =(E26*Simulador!$B$36*$F$3+Simulador!$O$17*(D27+I27+K27+M27+N27)) ->  | F27: =(F26*Simulador!$D$36*$G$3+Simulador!$P$17*(D27+I27+K27+M27+N27)) ->  | H27: 0 | I27: 0 | J27: 0 | K27: 0 | L27: 0 | M27: 0 | N27: 0
A28: 17 | B28: 0 | E28: =(E27*Simulador!$B$36*$F$3+Simulador!$O$17*(D28+I28+K28+M28+N28)) ->  | F28: =(F27*Simulador!$D$36*$G$3+Simulador!$P$17*(D28+I28+K28+M28+N28)) ->  | H28: 0 | I28: 0 | J28: 0 | K28: 0 | L28: 0 | M28: 0 | N28: 0
A29: 18 | B29: 0 | E29: =(E28*Simulador!$B$36*$F$3+Simulador!$O$17*(D29+I29+K29+M29+N29)) ->  | F29: =(F28*Simulador!$D$36*$G$3+Simulador!$P$17*(D29+I29+K29+M29+N29)) ->  | H29: 0 | I29: 0 | J29: 0 | K29: 0 | L29: 0 | M29: 0 | N29: 0
A30: 19 | B30: 0 | E30: =(E29*Simulador!$B$36*$F$3+Simulador!$O$17*(D30+I30+K30+M30+N30)) ->  | F30: =(F29*Simulador!$D$36*$G$3+Simulador!$P$17*(D30+I30+K30+M30+N30)) ->  | H30: 0 | I30: 0 | J30: 0 | K30: 0 | L30: 0 | M30: 0 | N30: 0
A31: 20 | B31: 0 | E31: =(E30*Simulador!$B$36*$F$3+Simulador!$O$17*(D31+I31+K31+M31+N31)) ->  | F31: =(F30*Simulador!$D$36*$G$3+Simulador!$P$17*(D31+I31+K31+M31+N31)) ->  | H31: 0 | I31: 0 | J31: 0 | K31: 0 | L31: 0 | M31: 0 | N31: 0
A32: 21 | B32: 0 | E32: =(E31*Simulador!$B$36*$F$3+Simulador!$O$17*(D32+I32+K32+M32+N32)) ->  | F32: =(F31*Simulador!$D$36*$G$3+Simulador!$P$17*(D32+I32+K32+M32+N32)) ->  | H32: 0 | I32: 0 | J32: 0 | K32: 0 | L32: 0 | M32: 0 | N32: 0
A33: 22 | B33: 0 | E33: =(E32*Simulador!$B$36*$F$3+Simulador!$O$17*(D33+I33+K33+M33+N33)) ->  | F33: =(F32*Simulador!$D$36*$G$3+Simulador!$P$17*(D33+I33+K33+M33+N33)) ->  | H33: 0 | I33: 0 | J33: 0 | K33: 0 | L33: 0 | M33: 0 | N33: 0
A34: 23 | B34: 0 | E34: =(E33*Simulador!$B$36*$F$3+Simulador!$O$17*(D34+I34+K34+M34+N34)) ->  | F34: =(F33*Simulador!$D$36*$G$3+Simulador!$P$17*(D34+I34+K34+M34+N34)) ->  | H34: 0 | I34: 0 | J34: 0 | K34: 0 | L34: 0 | M34: 0 | N34: 0
A35: 24 | B35: 0 | E35: =(E34*Simulador!$B$36*$F$3+Simulador!$O$17*(D35+I35+K35+M35+N35)) ->  | F35: =(F34*Simulador!$D$36*$G$3+Simulador!$P$17*(D35+I35+K35+M35+N35)) ->  | H35: 0 | I35: 0 | J35: 0 | K35: 0 | L35: 0 | M35: 0 | N35: 0
A36: 25 | B36: 0 | E36: =(E35*Simulador!$B$36*$F$3+Simulador!$O$17*(D36+I36+K36+M36+N36)) ->  | F36: =(F35*Simulador!$D$36*$G$3+Simulador!$P$17*(D36+I36+K36+M36+N36)) ->  | H36: 0 | I36: 0 | J36: 0 | K36: 0 | L36: 0 | M36: 0 | N36: 0
A37: 26 | B37: 0 | E37: =(E36*Simulador!$B$36*$F$3+Simulador!$O$17*(D37+I37+K37+M37+N37)) ->  | F37: =(F36*Simulador!$D$36*$G$3+Simulador!$P$17*(D37+I37+K37+M37+N37)) ->  | H37: 0 | I37: 0 | J37: 0 | K37: 0 | L37: 0 | M37: 0 | N37: 0
A38: 27 | B38: 0 | E38: =(E37*Simulador!$B$36*$F$3+Simulador!$O$17*(D38+I38+K38+M38+N38)) ->  | F38: =(F37*Simulador!$D$36*$G$3+Simulador!$P$17*(D38+I38+K38+M38+N38)) ->  | H38: 0 | I38: 0 | J38: 0 | K38: 0 | L38: 0 | M38: 0 | N38: 0
A39: 28 | B39: 0 | E39: =(E38*Simulador!$B$36*$F$3+Simulador!$O$17*(D39+I39+K39+M39+N39)) ->  | F39: =(F38*Simulador!$D$36*$G$3+Simulador!$P$17*(D39+I39+K39+M39+N39)) ->  | H39: 0 | I39: 0 | J39: 0 | K39: 0 | L39: 0 | M39: 0 | N39: 0
A40: 29 | B40: 0 | E40: =(E39*Simulador!$B$36*$F$3+Simulador!$O$17*(D40+I40+K40+M40+N40)) ->  | F40: =(F39*Simulador!$D$36*$G$3+Simulador!$P$17*(D40+I40+K40+M40+N40)) ->  | H40: 0 | I40: 0 | J40: 0 | K40: 0 | L40: 0 | M40: 0 | N40: 0
A41: 30 | B41: 0 | E41: =(E40*Simulador!$B$36*$F$3+Simulador!$O$17*(D41+I41+K41+M41+N41)) ->  | F41: =(F40*Simulador!$D$36*$G$3+Simulador!$P$17*(D41+I41+K41+M41+N41)) ->  | H41: 0 | I41: 0 | J41: 0 | K41: 0 | L41: 0 | M41: 0 | N41: 0
A42: 31 | B42: 0 | E42: =(E41*Simulador!$B$36*$F$3+Simulador!$O$17*(D42+I42+K42+M42+N42)) ->  | F42: =(F41*Simulador!$D$36*$G$3+Simulador!$P$17*(D42+I42+K42+M42+N42)) ->  | H42: 0 | I42: 0 | J42: 0 | K42: 0 | L42: 0 | M42: 0 | N42: 0
A43: 32 | B43: 0 | E43: =(E42*Simulador!$B$36*$F$3+Simulador!$O$17*(D43+I43+K43+M43+N43)) ->  | F43: =(F42*Simulador!$D$36*$G$3+Simulador!$P$17*(D43+I43+K43+M43+N43)) ->  | H43: 0 | I43: 0 | J43: 0 | K43: 0 | L43: 0 | M43: 0 | N43: 0 | Q43: =583000*0.985 -> 574255
A44: 33 | B44: 0 | E44: =(E43*Simulador!$B$36*$F$3+Simulador!$O$17*(D44+I44+K44+M44+N44)) ->  | F44: =(F43*Simulador!$D$36*$G$3+Simulador!$P$17*(D44+I44+K44+M44+N44)) ->  | H44: 0 | I44: 0 | J44: 0 | K44: 0 | L44: 0 | M44: 0 | N44: 0 | Q44: =Q43*0.9925 -> 569948.0875
A45: 34 | B45: 0 | E45: =(E44*Simulador!$B$36*$F$3+Simulador!$O$17*(D45+I45+K45+M45+N45)) ->  | F45: =(F44*Simulador!$D$36*$G$3+Simulador!$P$17*(D45+I45+K45+M45+N45)) ->  | H45: 0 | I45: 0 | J45: 0 | K45: 0 | L45: 0 | M45: 0 | N45: 0
A46: 35 | B46: 0 | E46: =(E45*Simulador!$B$36*$F$3+Simulador!$O$17*(D46+I46+K46+M46+N46)) ->  | F46: =(F45*Simulador!$D$36*$G$3+Simulador!$P$17*(D46+I46+K46+M46+N46)) ->  | H46: 0 | I46: 0 | J46: 0 | K46: 0 | L46: 0 | M46: 0 | N46: 0
A47: 36 | B47: 0 | E47: =(E46*Simulador!$B$36*$F$3+Simulador!$O$17*(D47+I47+K47+M47+N47)) ->  | F47: =(F46*Simulador!$D$36*$G$3+Simulador!$P$17*(D47+I47+K47+M47+N47)) ->  | H47: 0 | I47: 0 | J47: 0 | K47: 0 | L47: 0 | M47: 0 | N47: 0
A48: 37 | B48: 0 | E48: =(E47*Simulador!$B$36*$F$3+Simulador!$O$17*(D48+I48+K48+M48+N48)) ->  | F48: =(F47*Simulador!$D$36*$G$3+Simulador!$P$17*(D48+I48+K48+M48+N48)) ->  | H48: 0 | I48: 0 | J48: 0 | K48: 0 | L48: 0 | M48: 0 | N48: 0
A49: 38 | B49: 0 | E49: =(E48*Simulador!$B$36*$F$3+Simulador!$O$17*(D49+I49+K49+M49+N49)) ->  | F49: =(F48*Simulador!$D$36*$G$3+Simulador!$P$17*(D49+I49+K49+M49+N49)) ->  | H49: 0 | I49: 0 | J49: 0 | K49: 0 | L49: 0 | M49: 0 | N49: 0
A50: 39 | B50: 0 | E50: =(E49*Simulador!$B$36*$F$3+Simulador!$O$17*(D50+I50+K50+M50+N50)) ->  | F50: =(F49*Simulador!$D$36*$G$3+Simulador!$P$17*(D50+I50+K50+M50+N50)) ->  | H50: 0 | I50: 0 | J50: 0 | K50: 0 | L50: 0 | M50: 0 | N50: 0
A51: 40 | B51: 0 | E51: =(E50*Simulador!$B$36*$F$3+Simulador!$O$17*(D51+I51+K51+M51+N51)) ->  | F51: =(F50*Simulador!$D$36*$G$3+Simulador!$P$17*(D51+I51+K51+M51+N51)) ->  | H51: 0 | I51: 0 | J51: 0 | K51: 0 | L51: 0 | M51: 0 | N51: 0
A52: 41 | B52: 0 | E52: =(E51*Simulador!$B$36*$F$3+Simulador!$O$17*(D52+I52+K52+M52+N52)) ->  | F52: =(F51*Simulador!$D$36*$G$3+Simulador!$P$17*(D52+I52+K52+M52+N52)) ->  | H52: 0 | I52: 0 | J52: 0 | K52: 0 | L52: 0 | M52: 0 | N52: 0
A53: 42 | B53: 0 | E53: =(E52*Simulador!$B$36*$F$3+Simulador!$O$17*(D53+I53+K53+M53+N53)) ->  | F53: =(F52*Simulador!$D$36*$G$3+Simulador!$P$17*(D53+I53+K53+M53+N53)) ->  | H53: 0 | I53: 0 | J53: 0 | K53: 0 | L53: 0 | M53: 0 | N53: 0
A54: 43 | B54: 0 | E54: =(E53*Simulador!$B$36*$F$3+Simulador!$O$17*(D54+I54+K54+M54+N54)) ->  | F54: =(F53*Simulador!$D$36*$G$3+Simulador!$P$17*(D54+I54+K54+M54+N54)) ->  | H54: 0 | I54: 0 | J54: 0 | K54: 0 | L54: 0 | M54: 0 | N54: 0
A55: 44 | B55: 0 | E55: =(E54*Simulador!$B$36*$F$3+Simulador!$O$17*(D55+I55+K55+M55+N55)) ->  | F55: =(F54*Simulador!$D$36*$G$3+Simulador!$P$17*(D55+I55+K55+M55+N55)) ->  | H55: 0 | I55: 0 | J55: 0 | K55: 0 | L55: 0 | M55: 0 | N55: 0
A56: 45 | B56: 0 | E56: =(E55*Simulador!$B$36*$F$3+Simulador!$O$17*(D56+I56+K56+M56+N56)) ->  | F56: =(F55*Simulador!$D$36*$G$3+Simulador!$P$17*(D56+I56+K56+M56+N56)) ->  | H56: 0 | I56: 0 | J56: 0 | K56: 0 | L56: 0 | M56: 0 | N56: 0
O57: =SUM(O12:O56) -> 

Sheet Cálculo Participante
A6: Data cálculo benefício: | B6: =TODAY() -> 2015-09-11
A8: Dados do Participante | D8: =+C9-INT(C9) -> 0.6960985626
A9: SEXO | B9: MASCULINO | C9: =((B6-B10)/365.25) -> 115.6960986 | E9: Fator Atuarial
A10: Idade | B10: =Simulador!J7 -> 0 | C10: äx12 | D10: =VLOOKUP(B10,'Mort Validos-Masc'!A7:G122,7,0)+D8*(VLOOKUP(B10+1,'Mort Validos-Masc'!A7:G122,7,0)-VLOOKUP(B10,'Mort Validos-Masc'!A7:G122,7,0)) -> 20.74317528 | E10: =1/(13*D10) -> 0.003708355923
A11: Data Nascimento | B11: =Simulador!L6 -> IDADE ATUAL
A12: Salário de Participação | B12: =Simulador!J9 -> 0 | E12: Benefício inicial | F12: Expectativa de Vida
A13: Contribuição Participante | B13: =Simulador!H53 ->  | E13: =B18/(13*D10) ->  | F13: =VLOOKUP(B10,#REF!,9,0)+D8*(VLOOKUP(B10+1,#REF!,9,0)-VLOOKUP(B10,#REF!,9,0)) -> 
A14: Contribuição Patrocinadora | B14: =Simulador!H55 -> 
A15: Tempo de Vinculação do Plano | E15: Início Benefício
A16: Saldo da Conta do Participante | E16: =B6+ 1 -> 2015-09-12
A17: Saldo da Conta da Patrocinadora
A18: Saldo Total | B18: =Simulador!H61 -> 
A19: Saldo da Conta Total | B19: =Simulador!H61 -> 
A21: Este benefício será recalculado anualmente de acordo com o saldo remanescente e a idade do participante.
A23: Dados do Participante | D23: =+C24-INT(C24) -> 0.749486653
A24: SEXO | B24: FEMININO | C24: =(("30/09/2013"-B25)/365.25) -> 113.7494867 | E24: Fator Atuarial
A25: Idade | B25: =B10 -> 0 | C25: äx12 | D25: =VLOOKUP(B25,'Mort Validos-Fem'!A22:G137,7,0)+D23*(VLOOKUP(B25+1,'Mort Validos-Fem'!A22:G137,7,0)-VLOOKUP(B25,'Mort Validos-Fem'!A22:G137,7,0)) ->  | E25: =1/(13*D25) -> 
A26: Data Nascimento | B26: =B11 -> IDADE ATUAL
A27: Salário de Participação | B27: =Simulador!J9 -> 0 | E27: Benefício inicial | F27: Expectativa de Vida
A28: Contribuição Participante | B28: =Simulador!H53 ->  | E28: =B34/(13*D25) ->  | F28: =VLOOKUP(B25,#REF!,9,0)+D23*(VLOOKUP(B25+1,#REF!,9,0)-VLOOKUP(B25,#REF!,9,0)) -> 
A29: Contribuição Patrocinadora | B29: =Simulador!H55 -> 
A30: Tempo de Vinculação do Plano | E30: Início Benefício
A31: Saldo da Conta do Participante | E31: =B6+1 -> 2015-09-12
A32: Saldo da Conta da Patrocinadora
A33: Saldo Total | B33: =Simulador!H61 -> 
A34: Saldo da Conta Total | B34: =Simulador!H61 -> 
A36: Este benefício será recalculado anualmente de acordo com o saldo remanescente e a idade do participante.

Sheet Mort Validos-Masc
A1: BASES TÉCNICAS
A2: Mortalidade de Válidos:AT-2000 - Masculina
A3: Taxa de Juros - 4,75% aa
A4: Taxa de Morbidez:- Experiência de STEA
A6: IDADE X | B6: Lx | C6: p X | D6: q X | E6: D X | F6: N X | G6: a X | H6: nx | I6: e0x
A7: 0 | B7: 10078012.43 | C7: 0.997689 | D7: 0.002310999902 | E7: 10078012.43 | F7: 214016654 | G7: 20.73599821 | H7: 0.00374604 | I7: 80.56910911
A8: 1 | B8: 10054722.15 | C8: 0.999094 | D8: 0.000905999972 | E8: 9598779.962 | F8: 203938641.6 | G8: 20.74630863 | H8: 0.003799390905 | I8: 79.75341927
A9: 2 | B9: 10045612.57 | C9: 0.999496 | D9: 0.000503999996 | E9: 9155210.822 | F9: 194339861.6 | G9: 20.72724046 | H9: 0.003857376151 | I9: 78.82483457
A10: 3 | B10: 10040549.58 | C10: 0.999592 | D10: 0.0004079999926 | E10: 8735652.955 | F10: 185184650.8 | G10: 20.69871883 | H10: 0.0039203983 | I10: 77.86407806
A11: 4 | B11: 10036453.04 | C11: 0.999643 | D11: 0.0003570000117 | E11: 8336122.854 | F11: 176448997.8 | G11: 20.66679432 | H11: 0.003988894885 | I11: 76.8954514
A12: 5 | B12: 10032870.02 | C12: 0.999676 | D12: 0.0003239999933 | E12: 7955271.355 | F12: 168112875 | G12: 20.63226155 | H12: 0.004063341443 | I12: 75.92255576
A13: 6 | B13: 10029619.37 | C13: 0.999699 | D13: 0.0003009999928 | E13: 7592070.395 | F13: 160157603.6 | G13: 20.59537917 | H13: 0.00414425482 | I13: 74.94683853
A14: 7 | B14: 10026600.46 | C14: 0.999714 | D14: 0.000285999995 | E14: 7245618.213 | F14: 152565533.2 | G14: 20.55624789 | H14: 0.00423219676 | I14: 73.96910323
A15: 8 | B15: 10023732.85 | C15: 0.999672 | D15: 0.0003279999946 | E15: 6915079.587 | F15: 145319915 | G15: 20.51493023 | H15: 0.004327777798 | I15: 72.98997837
A16: 9 | B16: 10020445.06 | C16: 0.999638 | D16: 0.0003619999916 | E16: 6599342.574 | F16: 138404835.4 | G16: 20.47251868 | H16: 0.004431661509 | I16: 72.01359883
A17: 10 | B17: 10016817.66 | C17: 0.99961 | D17: 0.0003900000011 | E17: 6297807.658 | F17: 131805492.9 | G17: 20.42878983 | H17: 0.004544569105 | I17: 71.03931506
A18: 11 | B18: 10012911.1 | C18: 0.999587 | D18: 0.0004130000016 | E18: 6009882.031 | F18: 125507685.2 | G18: 20.38355222 | H18: 0.004667284449 | I18: 70.06664105
A19: 12 | B19: 10008775.77 | C19: 0.999569 | D19: 0.0004309999931 | E19: 5734987.94 | F19: 119497803.2 | G19: 20.33662676 | H19: 0.004800659493 | I19: 69.09517736
A20: 13 | B20: 10004461.99 | C20: 0.999554 | D20: 0.0004459999909 | E20: 5472569.052 | F20: 113762815.2 | G20: 20.28782637 | H20: 0.004945620194 | I20: 68.12453903
A21: 14 | B21: 10000000 | C21: 0.999542 | D21: 0.000457999995 | E21: 5222079.438 | F21: 108290246.2 | G21: 20.2369971 | H21: 0.005103172945 | I21: 67.15448994
A22: 15 | B22: 9995420 | C22: 0.99953 | D22: 0.000469999999 | E22: 4982995.374 | F22: 103068166.7 | G22: 20.18397801 | H22: 0.005274411557 | I22: 66.18480258
A23: 16 | B23: 9990722.153 | C23: 0.999519 | D23: 0.0004809999955 | E23: 4754800.285 | F23: 98085171.37 | G23: 20.12866272 | H23: 0.005460524855 | I23: 65.21545384
A24: 17 | B24: 9985916.615 | C24: 0.999505 | D24: 0.0004949999857 | E24: 4537005.404 | F24: 93330371.09 | G24: 20.07091909 | H24: 0.005662804933 | I24: 64.24635634
A25: 18 | B25: 9980973.587 | C25: 0.99949 | D25: 0.0005099999835 | E25: 4329126.038 | F25: 88793365.68 | G25: 20.01069082 | H25: 0.005882656122 | I25: 63.27767879
A26: 19 | B26: 9975883.29 | C26: 0.999472 | D26: 0.0005280000041 | E26: 4130709.427 | F26: 84464239.65 | G26: 19.94787733 | H26: 0.006121604743 | I26: 62.30945661
A27: 20 | B27: 9970616.024 | C27: 0.999451 | D27: 0.0005489999894 | E27: 3941315.853 | F27: 80333530.22 | G27: 19.8824137 | H27: 0.006381309697 | I27: 61.3418451
A28: 21 | B28: 9965142.155 | C28: 0.999427 | D28: 0.0005729999975 | E28: 3760526.985 | F28: 76392214.37 | G28: 19.81423114 | H28: 0.00666357399 | I28: 60.37499097
A29: 22 | B29: 9959432.129 | C29: 0.999401 | D29: 0.0005990000209 | E29: 3587944.775 | F29: 72631687.38 | G29: 19.74325678 | H29: 0.006970357244 | I29: 59.40903235
A30: 23 | B30: 9953466.429 | C30: 0.999373 | D30: 0.0006270000013 | E30: 3423193.84 | F30: 69043742.61 | G30: 19.66939322 | H30: 0.007303789305 | I30: 58.44404033
A31: 24 | B31: 9947225.606 | C31: 0.999343 | D31: 0.0006569999969 | E31: 3265916.42 | F31: 65620548.77 | G31: 19.59253769 | H31: 0.007666185029 | I31: 57.48008034
A32: 25 | B32: 9940690.278 | C32: 0.999314 | D32: 0.0006859999849 | E32: 3115771.521 | F32: 62354632.35 | G32: 19.51258177 | H32: 0.008060060352 | I32: 56.51721215
A33: 26 | B33: 9933870.965 | C33: 0.999286 | D33: 0.0007140000234 | E33: 2972443.016 | F33: 59238860.82 | G33: 19.42935121 | H33: 0.008488149756 | I33: 55.5553231
A34: 27 | B34: 9926778.181 | C34: 0.999262 | D34: 0.0007379999734 | E34: 2835628.307 | F34: 56266417.81 | G34: 19.34266332 | H34: 0.008953425259 | I34: 54.59430343
A35: 28 | B35: 9919452.219 | C35: 0.999242 | D35: 0.0007580000092 | E35: 2705045.895 | F35: 53430789.5 | G35: 19.25226728 | H35: 0.009459117039 | I35: 53.63388524
A36: 29 | B36: 9911933.274 | C36: 0.999226 | D36: 0.0007740000146 | E36: 2580425.234 | F36: 50725743.61 | G36: 19.15790093 | H36: 0.01000873587 | I36: 52.67381199
A37: 30 | B37: 9904261.438 | C37: 0.999216 | D37: 0.0007839999744 | E37: 2461506.396 | F37: 48145318.37 | G37: 19.05929038 | H37: 0.01060609748 | I37: 51.7138385
A38: 31 | B38: 9896496.497 | C38: 0.999211 | D38: 0.0007890000124 | E38: 2348044.431 | F38: 45683811.98 | G38: 18.95611053 | H38: 0.01125534906 | I38: 50.75362935
A39: 32 | B39: 9888688.161 | C39: 0.999211 | D39: 0.0007890000124 | E39: 2239801.233 | F39: 43335767.55 | G39: 18.84804165 | H39: 0.01196099805 | I39: 49.79291596
A40: 33 | B40: 9880885.986 | C40: 0.99921 | D40: 0.0007900000201 | E40: 2136547.971 | F40: 41095966.31 | G40: 18.73475011 | H40: 0.01272794342 | I40: 48.83144397
A41: 34 | B41: 9873080.086 | C41: 0.999209 | D41: 0.0007910000277 | E41: 2038052.572 | F41: 38959418.34 | G41: 18.61600264 | H41: 0.0135615097 | I41: 47.86926068
A42: 35 | B42: 9865270.48 | C42: 0.999208 | D42: 0.0007919999771 | E42: 1944095.89 | F42: 36921365.77 | G42: 18.49153533 | H42: 0.01446748393 | I42: 46.90636362
A43: 36 | B43: 9857457.185 | C43: 0.999206 | D43: 0.0007939999923 | E43: 1854468.868 | F43: 34977269.88 | G43: 18.36107148 | H43: 0.01545215585 | I43: 45.94275027
A44: 37 | B44: 9849630.364 | C44: 0.999177 | D44: 0.0008229999803 | E44: 1768970.305 | F44: 33122801.01 | G44: 18.22433976 | H44: 0.01652236156 | I44: 44.97846317
A45: 38 | B45: 9841524.119 | C45: 0.999128 | D45: 0.0008720000042 | E45: 1687364.6 | F45: 31353830.71 | G45: 18.08153876 | H45: 0.01768553096 | I45: 44.01468726
A46: 39 | B46: 9832942.31 | C46: 0.999055 | D46: 0.0009449999779 | E46: 1609444.577 | F46: 29666466.11 | G46: 17.93273545 | H46: 0.01894973937 | I46: 43.05222881
A47: 40 | B47: 9823650.179 | C47: 0.998957 | D47: 0.001043000026 | E47: 1535010.625 | F47: 28057021.53 | G47: 17.7780634 | H47: 0.02032376357 | I47: 42.09200575
A48: 41 | B48: 9813404.112 | C48: 0.998832 | D48: 0.001168000046 | E48: 1463875.502 | F48: 26522010.9 | G48: 17.61766839 | H48: 0.02181714274 | I48: 41.13490946
A49: 42 | B49: 9801942.056 | C49: 0.998678 | D49: 0.001322000055 | E49: 1395862.22 | F49: 25058135.4 | G49: 17.45172549 | H49: 0.02344024469 | I49: 40.18184185
A50: 43 | B50: 9788983.889 | C50: 0.998495 | D50: 0.001505000051 | E50: 1330803.696 | F50: 23662273.18 | G50: 17.28043844 | H50: 0.0252043378 | I50: 39.23370882
A51: 44 | B51: 9774251.468 | C51: 0.998285 | D51: 0.00171500002 | E51: 1268544.934 | F51: 22331469.49 | G51: 17.10400353 | H51: 0.02712166933 | I51: 38.29133728
A52: 45 | B52: 9757488.627 | C52: 0.998052 | D52: 0.001948000048 | E52: 1208944.498 | F52: 21062924.55 | G52: 16.92257365 | H52: 0.02920555035 | I52: 37.35540179
A53: 46 | B53: 9738481.039 | C53: 0.997802 | D53: 0.002197999973 | E53: 1151875.377 | F53: 19853980.06 | G53: 16.73622229 | H53: 0.03147044824 | I53: 36.42636034
A54: 47 | B54: 9717075.857 | C54: 0.997537 | D54: 0.002462999895 | E54: 1097225.336 | F54: 18702104.68 | G54: 16.54490779 | H54: 0.03393208708 | I54: 35.50439901
A55: 48 | B55: 9693142.7 | C55: 0.99726 | D55: 0.002739999909 | E55: 1044890.554 | F55: 17604879.34 | G55: 16.34853909 | H55: 0.03660755681 | I55: 34.58959318
A56: 49 | B56: 9666583.489 | C56: 0.996972 | D56: 0.003028000006 | E56: 994775.694 | F56: 16559988.79 | G56: 16.14695759 | H56: 0.03951543192 | I56: 33.68188153
A57: 50 | B57: 9637313.074 | C57: 0.99667 | D57: 0.003329999978 | E57: 946790.9305 | F57: 15565213.09 | G57: 15.93996852 | H57: 0.04267590036 | I57: 32.78114284
A58: 51 | B58: 9605220.821 | C58: 0.996353 | D58: 0.003647000063 | E58: 900847.8318 | F58: 14618422.16 | G58: 15.7274045 | H58: 0.0461109037 | I58: 31.88732764
A59: 52 | B59: 9570190.581 | C59: 0.99602 | D59: 0.003980000038 | E59: 856861.5059 | F59: 13717574.33 | G59: 15.50909159 | H59: 0.04984428951 | I59: 31.00038604
A60: 53 | B60: 9532101.222 | C60: 0.995669 | D60: 0.004331000149 | E60: 814750.5351 | F60: 12860712.83 | G60: 15.28484735 | H60: 0.05390197684 | I60: 30.1202647
A61: 54 | B61: 9490817.692 | C61: 0.995302 | D61: 0.004697999917 | E61: 774436.1236 | F61: 12045962.29 | G61: 15.05449433 | H61: 0.05831213624 | I61: 29.24693317
A62: 55 | B62: 9446229.83 | C62: 0.994923 | D62: 0.005076999776 | E62: 735845.1667 | F62: 11271526.17 | G62: 14.81779602 | H62: 0.06310538528 | I62: 28.38026364
A63: 56 | B63: 9398271.322 | C63: 0.994535 | D63: 0.005464999937 | E63: 698910.9984 | F63: 10535681 | G63: 14.57442439 | H63: 0.06831500115 | I63: 27.5199826
A64: 57 | B64: 9346909.769 | C64: 0.994139 | D64: 0.005861000158 | E64: 663571.7807 | F64: 9836770.002 | G64: 14.32397276 | H64: 0.07397715166 | I64: 26.6657107
A65: 58 | B65: 9292127.531 | C65: 0.993735 | D65: 0.006264999975 | E65: 629768.5704 | F65: 9173198.221 | G65: 14.06598289 | H65: 0.08013114633 | I65: 25.81702428
A66: 59 | B66: 9233912.352 | C66: 0.993306 | D66: 0.006694000214 | E66: 597444.4503 | F66: 8543429.651 | G66: 13.7999565 | H66: 0.08681970936 | I66: 24.97348316
A67: 60 | B67: 9172100.542 | C67: 0.99283 | D67: 0.007170000114 | E67: 566534.7485 | F67: 7945985.201 | G67: 13.52559194 | H67: 0.09408927616 | I67: 24.13504313
A68: 61 | B68: 9106336.582 | C68: 0.992286 | D68: 0.007714000065 | E68: 536966.7654 | F68: 7379450.452 | G68: 13.24284393 | H68: 0.1019903158 | I68: 23.30211933
A69: 62 | B69: 9036090.301 | C69: 0.991652 | D69: 0.008348000236 | E69: 508663.0992 | F69: 6842483.687 | G69: 12.95189713 | H69: 0.1105776812 | I69: 22.4754953
A70: 63 | B70: 8960657.019 | C70: 0.990907 | D70: 0.009092999622 | E70: 481543.4585 | F70: 6333820.588 | G70: 12.65316505 | H70: 0.1199109904 | I70: 21.65628194
A71: 64 | B71: 8879177.765 | C71: 0.990032 | D71: 0.009968000464 | E71: 455527.2337 | F71: 5852277.129 | G71: 12.3472607 | H71: 0.1300550399 | I71: 20.8458331
A72: 65 | B72: 8790670.121 | C72: 0.989007 | D72: 0.01099300012 | E72: 430536.0688 | F72: 5396749.895 | G72: 12.03495418 | H72: 0.141080255 | I72: 20.04564812
A73: 66 | B73: 8694034.284 | C73: 0.987812 | D73: 0.01218799967 | E73: 406494.6826 | F73: 4966213.826 | G73: 11.717168 | H73: 0.1530631782 | I73: 19.25734411
A74: 67 | B74: 8588071.395 | C74: 0.986428 | D74: 0.01357199997 | E74: 383332.0477 | F74: 4559719.144 | G74: 11.3949594 | H74: 0.1660870011 | I74: 18.48261016
A75: 68 | B75: 8471514.09 | C75: 0.98484 | D75: 0.01515999995 | E75: 360982.778 | F75: 4176387.096 | G75: 11.06949126 | H75: 0.1802421418 | I75: 17.72314873
A76: 69 | B76: 8343085.936 | C76: 0.983054 | D76: 0.01694599912 | E76: 339389.2833 | F76: 3815404.318 | G76: 10.74197052 | H76: 0.1956268725 | I76: 16.98057424
A77: 70 | B77: 8201704.002 | C77: 0.98108 | D77: 0.01892000064 | E77: 318508.819 | F77: 3476015.035 | G77: 10.41340279 | H77: 0.2123480018 | I77: 16.25604925
A78: 71 | B78: 8046527.762 | C78: 0.978929 | D78: 0.02107100002 | E78: 298312.7712 | F78: 3157506.216 | G78: 10.08454924 | H78: 0.2305216163 | I78: 15.55026017
A79: 72 | B79: 7876979.376 | C79: 0.976612 | D79: 0.02338800021 | E79: 278784.7435 | F79: 2859193.445 | G79: 9.755917911 | H79: 0.2502738866 | I79: 14.86344788
A80: 73 | B80: 7692752.582 | C80: 0.974129 | D80: 0.02587099932 | E80: 259918.3983 | F80: 2580408.701 | G80: 9.427764706 | H80: 0.271741943 | I80: 14.19545109
A81: 74 | B81: 7493733.38 | C81: 0.971448 | D81: 0.02855199948 | E81: 241712.6931 | F81: 2320490.303 | G81: 9.100200442 | H81: 0.2950748277 | I81: 13.54589699
A82: 75 | B82: 7279772.304 | C82: 0.968523 | D82: 0.03147700056 | E82: 224163.5408 | F82: 2078777.61 | G82: 8.773486678 | H82: 0.3204345295 | I82: 12.91463567
A83: 76 | B83: 7050626.912 | C83: 0.965314 | D83: 0.03468599916 | E83: 207262.57 | F83: 1854614.069 | G83: 8.448137952 | H83: 0.3479971084 | I83: 12.30186136
A84: 77 | B84: 6806068.867 | C84: 0.961775 | D84: 0.03822499886 | E84: 191000.9144 | F84: 1647351.499 | G84: 8.124835668 | H84: 0.3779539179 | I84: 11.70796379
A85: 78 | B85: 6545906.884 | C85: 0.957868 | D85: 0.04213200137 | E85: 175369.8348 | F85: 1456350.585 | G85: 7.804453195 | H85: 0.4105129334 | I85: 11.13354349
A86: 79 | B86: 6270114.735 | C86: 0.953573 | D86: 0.04642700031 | E86: 160363.8669 | F86: 1280980.75 | G86: 7.487963713 | H86: 0.4459001963 | I86: 10.57926927
A87: 80 | B87: 5979012.118 | C87: 0.948872 | D87: 0.05112800002 | E87: 145984.3929 | F87: 1120616.883 | G87: 7.17627868 | H87: 0.4843613829 | I87: 10.04565908
A88: 81 | B88: 5673317.187 | C88: 0.94375 | D88: 0.05624999851 | E88: 132239.1417 | F88: 974632.49 | G88: 6.870226978 | H88: 0.5261635106 | I88: 9.533065663
A89: 82 | B89: 5354193.095 | C89: 0.938191 | D89: 0.06180899963 | E89: 119141.4686 | F89: 842393.3482 | G89: 6.570530173 | H89: 0.5715967909 | I89: 9.04165898
A90: 83 | B90: 5023255.774 | C90: 0.932174 | D90: 0.06782600284 | E90: 106708.7847 | F90: 723251.8797 | G90: 6.277810108 | H90: 0.6209766449 | I90: 8.571451848
A91: 84 | B91: 4682548.428 | C91: 0.925678 | D91: 0.07432200015 | E91: 94960.52824 | F91: 616543.095 | G91: 5.99262495 | H91: 0.6746458928 | I91: 8.122358967
A92: 85 | B92: 4334532.064 | C92: 0.918674 | D92: 0.08132600039 | E92: 83916.82163 | F92: 521582.5667 | G92: 5.715470946 | H92: 0.7329771338 | I92: 7.694207885
A93: 86 | B93: 3982021.909 | C93: 0.911137 | D93: 0.08886300027 | E93: 73596.37341 | F93: 437665.7451 | G93: 5.446838476 | H93: 0.7963753333 | I93: 7.286815438
A94: 87 | B94: 3628167.496 | C94: 0.903042 | D94: 0.09695799649 | E94: 64015.63529 | F94: 364069.3717 | G94: 5.187194543 | H94: 0.8652806338 | I94: 6.899967225
A95: 88 | B95: 3276387.632 | C95: 0.894369 | D95: 0.1056310013 | E95: 55187.4048 | F95: 300053.7364 | G95: 4.936996675 | H95: 0.9401714112 | I95: 6.533436125
A96: 89 | B96: 2930299.53 | C96: 0.885142 | D96: 0.1148580015 | E96: 47119.71682 | F96: 244866.3316 | G96: 4.696685127 | H96: 1 | I96: 6.186972184
A97: 90 | B97: 2593731.187 | C97: 0.875388 | D97: 0.1246120036 | E97: 39816.36259 | F97: 197746.6148 | G97: 4.466466093 | H97: 1 | I97: 5.860045262
A98: 91 | B98: 2270521.156 | C98: 0.865139 | D98: 0.1348610073 | E98: 33274.23918 | F98: 157930.2522 | G98: 4.246321961 | H98: 1 | I98: 5.551875582
A99: 92 | B99: 1964316.402 | C99: 0.854425 | D99: 0.1455750018 | E99: 27481.47171 | F99: 124656.013 | G99: 4.036002085 | H99: 1 | I99: 5.261438431
A100: 93 | B100: 1678361.042 | C100: 0.843273 | D100: 0.1567270011 | E100: 22416.09179 | F100: 97174.54127 | G100: 3.835034947 | H100: 1 | I100: 4.987492677
A101: 94 | B101: 1415316.551 | C101: 0.83171 | D101: 0.1682900041 | E101: 18045.71333 | F101: 74758.44948 | G101: 3.642726205 | H101: 1 | I101: 4.728590477
A102: 95 | B102: 1177132.929 | C102: 0.819755 | D102: 0.1802449971 | E102: 14328.21005 | F102: 56712.73616 | G102: 3.458117306 | H102: 1 | I102: 4.483041537
A103: 96 | B103: 964960.604 | C103: 0.807435 | D103: 0.1925649941 | E103: 11213.00398 | F103: 42384.52611 | G103: 3.27994391 | H103: 1 | I103: 4.248881113
A104: 97 | B104: 779142.9653 | C104: 0.794771 | D104: 0.2052289993 | E104: 8643.21885 | F104: 31171.52213 | G104: 3.106471463 | H104: 1 | I104: 4.023706073
A105: 98 | B105: 619240.2336 | C105: 0.781317 | D105: 0.2186830044 | E105: 6557.880281 | F105: 22528.30328 | G105: 2.935302615 | H105: 1 | I105: 3.804499753
A106: 99 | B106: 483822.9216 | C106: 0.766629 | D106: 0.2333710045 | E106: 4891.439883 | F106: 15970.423 | G106: 2.764973786 | H106: 1 | I106: 3.589451852
A107: 100 | B107: 370912.6826 | C107: 0.750259 | D107: 0.2497410029 | E107: 3579.875527 | F107: 11078.98311 | G107: 2.594795623 | H107: 1 | I107: 3.377711843
A108: 101 | B108: 278280.5783 | C108: 0.731763 | D108: 0.2682369947 | E108: 2564.041811 | F108: 7499.107584 | G108: 2.424721256 | H108: 1 | I108: 3.169188031
A109: 102 | B109: 203635.4308 | C109: 0.710695 | D109: 0.2893050015 | E109: 1791.189405 | F109: 4935.065774 | G109: 2.255189239 | H109: 1 | I109: 2.96433139
A110: 103 | B110: 144722.6825 | C110: 0.686609 | D110: 0.313391 | E110: 1215.264283 | F110: 3143.876369 | G110: 2.086989852 | H110: 1 | I110: 2.763958364
A111: 104 | B111: 99367.89632 | C111: 0.65906 | D111: 0.3409399986 | E111: 796.5741126 | F111: 1928.612085 | G111: 1.921133269 | H111: 1 | I111: 2.569087158
A112: 105 | B112: 65489.40575 | C112: 0.627602 | D112: 0.372397989 | E112: 501.1838926 | F112: 1132.037973 | G112: 1.758727763 | H112: 1 | I112: 2.380795615
A113: 106 | B113: 41101.28203 | C113: 0.59179 | D113: 0.4082100093 | E113: 300.2806769 | F113: 630.8540799 | G113: 1.60088137 | H113: 1 | I113: 2.200113471
A114: 107 | B114: 24323.32769 | C114: 0.551177 | D114: 0.448823005 | E114: 169.6449636 | F114: 330.573403 | G114: 1.448619022 | H114: 1 | I114: 2.027938071
A115: 108 | B115: 13406.45879 | C115: 0.505319 | D115: 0.4946810007 | E115: 89.26434446 | F115: 160.9284394 | G115: 1.302830015 | H115: 1 | I115: 1.864987238
A116: 109 | B116: 6774.538348 | C116: 0.453769 | D116: 0.5462309718 | E116: 43.06154526 | F116: 71.66409497 | G116: 1.164224879 | H116: 1 | I116: 1.711764723
A117: 110 | B117: 3074.075491 | C117: 0.396083 | D117: 0.6039170027 | E117: 18.65393228 | F117: 28.6025497 | G117: 1.033325482 | H117: 1 | I117: 1.568561807
A118: 111 | B118: 1217.589043 | C118: 0.331814 | D118: 0.6681860089 | E118: 7.053465737 | F118: 9.948617421 | G118: 0.9104580347 | H118: 1 | I118: 1.435461272
A119: 112 | B119: 404.0130907 | C119: 0.260517 | D119: 0.7394829988 | E119: 2.234308972 | F119: 2.895151684 | G119: 0.7957705137 | H119: 1 | I119: 1.312365579
A120: 113 | B120: 105.2522783 | C120: 0.181746 | D120: 0.818253994 | E120: 0.5556806324 | F120: 0.6608427123 | G120: 0.6892491366 | H120: 1 | I120: 1.199021866
A121: 114 | B121: 19.12918058 | C121: 0.095055 | D121: 0.9049450159 | E121: 0.0964131082 | F121: 0.1051620799 | G121: 0.5907446288 | H121: 1 | I121: 1.095055
A122: 115 | B122: 1.81832426 | C122: 0 | D122: 1 | E122: 0.008748971718 | F122: 0.008748971718 | G122: 0.5 | H122: 1 | I122: 1
B125: (*) 1996 US Annuity 2000 Basic Table, Male and Female - Fonte: site do Society of Actuaries SOA (17/06/2002)

Sheet Mort Validos-Fem
A1: BASES TÉCNICAS
A2: Mortalidade de Válidos:AT-2000 - Feminina
A3: Taxa de Juros - 4,75% aa
A4: Taxa de Morbidez:- Experiência de STEA
A6: IDADE X | B6: Lx | C6: p X | D6: q X | E6: D X | F6: N X | G6: a X | H6: nx | I6: e0x
A7: 0 | B7: 10048337.91 | C7: 0.998206 | D7: 0.00179400004 | E7: 10048337.91 | F7: 215301774.9 | G7: 20.92660575 | H7: 0.00374604 | I7: 84.84380006
A8: 1 | B8: 10030311.19 | C8: 0.999245 | D8: 0.0007549999864 | E8: 9575475.95 | F8: 205253437 | G8: 20.93532479 | H8: 0.003799390905 | I8: 83.99448617
A9: 2 | B9: 10022738.31 | C9: 0.999608 | D9: 0.0003919999872 | E9: 9134364.043 | F9: 195677961 | G9: 20.92217675 | H9: 0.003857376151 | I9: 83.05719435
A10: 3 | B10: 10018809.4 | C10: 0.99971 | D10: 0.0002899999963 | E10: 8716738.184 | F10: 186543597 | G10: 20.90061948 | H10: 0.0039203983 | I10: 82.08937339
A11: 4 | B11: 10015903.94 | C11: 0.999768 | D11: 0.0002320000058 | E11: 8319055.093 | F11: 177826858.8 | G11: 20.87584819 | H11: 0.003988894885 | I11: 81.11289613
A12: 5 | B12: 10013580.25 | C12: 0.999811 | D12: 0.0001889999985 | E12: 7939976.095 | F12: 169507803.7 | G12: 20.84865416 | H12: 0.004063341443 | I12: 80.13148663
A13: 6 | B13: 10011687.68 | C13: 0.999844 | D13: 0.0001559999946 | E13: 7578496.736 | F13: 161567827.6 | G13: 20.81924486 | H13: 0.00414425482 | I13: 79.14644531
A14: 7 | B14: 10010125.86 | C14: 0.999869 | D14: 0.0001309999934 | E14: 7233713.018 | F14: 153989330.9 | G14: 20.78773017 | H14: 0.00423219676 | I14: 78.15863806
A15: 8 | B15: 10008814.54 | C15: 0.999869 | D15: 0.0001309999934 | E15: 6904787.879 | F15: 146755617.9 | G15: 20.75418194 | H15: 0.004327777798 | I15: 77.16874717
A16: 9 | B16: 10007503.38 | C16: 0.999866 | D16: 0.0001340000017 | E16: 6590819.339 | F16: 139850830 | G16: 20.71903557 | H16: 0.004431661509 | I16: 76.17872658
A17: 10 | B17: 10006162.37 | C17: 0.99986 | D17: 0.0001400000037 | E17: 6291108.429 | F17: 133260010.6 | G17: 20.68227847 | H17: 0.004544569105 | I17: 75.18880188
A18: 11 | B18: 10004761.51 | C18: 0.999852 | D18: 0.0001480000064 | E18: 6004990.537 | F18: 126968902.2 | G18: 20.64389713 | H18: 0.004667284449 | I18: 74.19918976
A19: 12 | B19: 10003280.81 | C19: 0.999842 | D19: 0.0001579999953 | E19: 5731839.348 | F19: 120963911.7 | G19: 20.60385591 | H19: 0.004800659493 | I19: 73.21002485
A20: 13 | B20: 10001700.29 | C20: 0.99983 | D20: 0.0001699999993 | E20: 5471058.366 | F20: 115232072.3 | G20: 20.56211716 | H20: 0.004945620194 | I20: 72.22143584
A21: 14 | B21: 10000000 | C21: 0.999817 | D21: 0.0001829999965 | E21: 5222079.438 | F21: 109761014 | G21: 20.51864119 | H21: 0.005103172945 | I21: 71.23354554
A22: 15 | B22: 9998170 | C22: 0.999803 | D22: 0.0001970000012 | E22: 4984366.326 | F22: 104538934.5 | G22: 20.47336505 | H22: 0.005274411557 | I22: 70.24640063
A23: 16 | B23: 9996200.361 | C23: 0.999788 | D23: 0.000211999999 | E23: 4757407.482 | F23: 99554568.19 | G23: 20.42622265 | H23: 0.005460524855 | I23: 69.26004486
A24: 17 | B24: 9994081.166 | C24: 0.999772 | D24: 0.0002280000044 | E24: 4540714.89 | F24: 94797160.71 | G24: 20.37714446 | H24: 0.005662804933 | I24: 68.27451906
A25: 18 | B25: 9991802.516 | C25: 0.999756 | D25: 0.0002439999953 | E25: 4333822.954 | F25: 90256445.82 | G25: 20.32605745 | H25: 0.005882656122 | I25: 67.28986114
A26: 19 | B26: 9989364.516 | C26: 0.99974 | D26: 0.0002600000007 | E26: 4136291.592 | F26: 85922622.86 | G26: 20.27286404 | H26: 0.006121604743 | I26: 66.30603982
A27: 20 | B27: 9986767.281 | C27: 0.999723 | D27: 0.0002770000137 | E27: 3947700.334 | F27: 81786331.27 | G27: 20.2174619 | H27: 0.006381309697 | I27: 65.3230238
A28: 21 | B28: 9984000.946 | C28: 0.999706 | D28: 0.0002939999977 | E28: 3767643.691 | F28: 77838630.94 | G28: 20.15976438 | H28: 0.00666357399 | I28: 64.34084622
A29: 22 | B29: 9981065.65 | C29: 0.999688 | D29: 0.0003119999892 | E29: 3595738.38 | F29: 74070987.25 | G29: 20.09965977 | H29: 0.006970357244 | I29: 63.3594739
A30: 23 | B30: 9977951.558 | C30: 0.99967 | D30: 0.0003300000099 | E30: 3431614.759 | F30: 70475248.87 | G30: 20.03705145 | H30: 0.007303789305 | I30: 62.37893613
A31: 24 | B31: 9974658.834 | C31: 0.999651 | D31: 0.000349000009 | E31: 3274923.417 | F31: 67043634.11 | G31: 19.97181737 | H31: 0.007666185029 | I31: 61.39919787
A32: 25 | B32: 9971177.678 | C32: 0.999633 | D32: 0.0003670000006 | E32: 3125327.374 | F32: 63768710.69 | G32: 19.90384992 | H32: 0.008060060352 | I32: 60.42028455
A33: 26 | B33: 9967518.255 | C33: 0.999615 | D33: 0.0003849999921 | E33: 2982511.061 | F33: 60643383.32 | G33: 19.83299528 | H33: 0.008488149756 | I33: 59.4420998
A34: 27 | B34: 9963680.761 | C34: 0.999597 | D34: 0.0004030000127 | E34: 2846169.693 | F34: 57660872.26 | G34: 19.75911259 | H34: 0.008953425259 | I34: 58.46460867
A35: 28 | B35: 9959665.398 | C35: 0.999581 | D35: 0.0004189999891 | E35: 2716012.074 | F35: 54814702.56 | G35: 19.68205408 | H35: 0.009459117039 | I35: 57.48777625
A36: 29 | B36: 9955492.298 | C36: 0.999565 | D36: 0.0004349999945 | E36: 2591765.182 | F36: 52098690.49 | G36: 19.6016245 | H36: 0.01000873587 | I36: 56.51145455
A37: 30 | B37: 9951161.659 | C37: 0.99955 | D37: 0.0004499999923 | E37: 2473162.509 | F37: 49506925.31 | G37: 19.51765962 | H37: 0.01060609748 | I37: 55.53561254
A38: 31 | B38: 9946683.636 | C38: 0.999537 | D38: 0.0004630000039 | E38: 2359951.84 | F38: 47033762.8 | G38: 19.42996721 | H38: 0.01125534906 | I38: 54.56016461
A39: 32 | B39: 9942078.321 | C39: 0.999524 | D39: 0.0004759999865 | E39: 2251894.177 | F39: 44673810.96 | G39: 19.33832607 | H39: 0.01196099805 | I39: 53.58497445
A40: 33 | B40: 9937345.892 | C40: 0.999512 | D40: 0.0004879999906 | E40: 2148756.319 | F40: 42421916.78 | G40: 19.24254428 | H40: 0.01272794342 | I40: 52.61001682
A41: 34 | B41: 9932496.467 | C41: 0.9995 | D41: 0.0005000000237 | E41: 2050317.61 | F41: 40273160.46 | G41: 19.14240089 | H41: 0.0135615097 | I41: 51.63521481
A42: 35 | B42: 9927530.219 | C42: 0.999485 | D42: 0.0005150000216 | E42: 1956365.082 | F42: 38222842.85 | G42: 19.03768404 | H42: 0.01446748393 | I42: 50.66054508
A43: 36 | B43: 9922417.541 | C43: 0.999466 | D43: 0.0005339999916 | E43: 1866689.764 | F43: 36266477.77 | G43: 18.92822984 | H43: 0.01545215585 | I43: 49.68613344
A44: 37 | B44: 9917118.97 | C44: 0.999442 | D44: 0.0005579999997 | E44: 1781091.099 | F44: 34399788.01 | G44: 18.81388464 | H44: 0.01652236156 | I44: 48.71214572
A45: 38 | B45: 9911585.218 | C45: 0.99941 | D45: 0.0005900000106 | E45: 1699376.826 | F45: 32618696.91 | G45: 18.69450495 | H45: 0.01768553096 | I45: 47.73878397
A46: 39 | B46: 9905737.382 | C46: 0.99937 | D46: 0.0006300000241 | E46: 1621359.59 | F46: 30919320.08 | G46: 18.56999549 | H46: 0.01894973937 | I46: 46.76637613
A47: 40 | B47: 9899496.768 | C47: 0.999323 | D47: 0.0006769999745 | E47: 1546862.159 | F47: 29297960.49 | G47: 18.4402529 | H47: 0.02032376357 | I47: 45.79522712
A48: 41 | B48: 9892794.809 | C48: 0.999268 | D48: 0.0007319999859 | E48: 1475718.293 | F48: 27751098.33 | G48: 18.30514625 | H48: 0.02181714274 | I48: 44.82557403
A49: 42 | B49: 9885553.283 | C49: 0.999204 | D49: 0.0007960000075 | E49: 1407769.019 | F49: 26275380.04 | G49: 18.16455341 | H49: 0.02344024469 | I49: 43.85767785
A50: 43 | B50: 9877684.382 | C50: 0.999132 | D50: 0.0008679999737 | E50: 1342862.449 | F50: 24867611.02 | G50: 18.01836056 | H50: 0.0252043378 | I50: 42.89181974
A51: 44 | B51: 9869110.552 | C51: 0.99905 | D51: 0.000950000016 | E51: 1280856.159 | F51: 23524748.57 | G51: 17.86642499 | H51: 0.02712166933 | I51: 41.92821343
A52: 45 | B52: 9859734.897 | C52: 0.998957 | D52: 0.001043000026 | E52: 1221612.724 | F52: 22243892.41 | G52: 17.70862863 | H52: 0.02920555035 | I52: 40.96713221
A53: 46 | B53: 9849451.194 | C53: 0.998852 | D53: 0.00114800001 | E53: 1165001.017 | F53: 21022279.69 | G53: 17.54485952 | H53: 0.03147044824 | I53: 40.00886145
A54: 47 | B54: 9838144.024 | C54: 0.998733 | D54: 0.001266999985 | E54: 1110896.019 | F54: 19857278.67 | G54: 17.37501111 | H54: 0.03393208708 | I54: 39.05369509
A55: 48 | B55: 9825679.095 | C55: 0.9986 | D55: 0.00139999995 | E55: 1059177.564 | F55: 18746382.65 | G55: 17.19899901 | H55: 0.03660755681 | I55: 38.10197029
A56: 49 | B56: 9811923.145 | C56: 0.998452 | D56: 0.001548000029 | E56: 1009732.411 | F56: 17687205.09 | G56: 17.01672511 | H56: 0.03951543192 | I56: 37.15398587
A57: 50 | B57: 9796734.288 | C57: 0.99829 | D57: 0.001709999982 | E57: 962452.8227 | F57: 16677472.68 | G57: 16.82809368 | H57: 0.04267590036 | I57: 36.21003901
A58: 51 | B58: 9779981.872 | C58: 0.998112 | D58: 0.001888000057 | E58: 917238.2008 | F58: 15715019.85 | G58: 16.63297575 | H58: 0.0461109037 | I58: 35.27035131
A59: 52 | B59: 9761517.266 | C59: 0.997921 | D59: 0.002078999998 | E59: 873991.8306 | F59: 14797781.65 | G59: 16.43125855 | H59: 0.04984428951 | I59: 34.33517612
A60: 53 | B60: 9741223.072 | C60: 0.997714 | D60: 0.002285999944 | E60: 832625.0975 | F60: 13923789.82 | G60: 16.22276018 | H60: 0.05390197684 | I60: 33.40462434
A61: 54 | B61: 9718954.636 | C61: 0.997493 | D61: 0.002506999997 | E61: 793051.7472 | F61: 13091164.73 | G61: 16.00732726 | H61: 0.05831213624 | I61: 32.47887104
A62: 55 | B62: 9694589.217 | C62: 0.997254 | D62: 0.002745999955 | E62: 755191.9386 | F62: 12298112.98 | G62: 15.7847514 | H62: 0.06310538528 | I62: 31.55798691
A63: 56 | B63: 9667967.875 | C63: 0.996997 | D63: 0.003003000049 | E63: 718967.2279 | F63: 11542921.04 | G63: 15.55486397 | H63: 0.06831500115 | I63: 30.6421302
A64: 57 | B64: 9638934.967 | C64: 0.99672 | D64: 0.003280000063 | E64: 684303.7323 | F64: 10823953.81 | G64: 15.31747008 | H64: 0.07397715166 | I64: 29.73141363
A65: 58 | B65: 9607319.26 | C65: 0.996422 | D65: 0.003578000003 | E65: 651130.5076 | F65: 10139650.08 | G65: 15.07237752 | H65: 0.08013114633 | I65: 28.82596279
A66: 59 | B66: 9572944.272 | C66: 0.996093 | D66: 0.00390700018 | E66: 619380.1945 | F66: 9488519.572 | G66: 14.8193784 | H66: 0.08681970936 | I66: 27.9258816
A67: 60 | B67: 9535542.779 | C67: 0.995723 | D67: 0.004277000204 | E67: 588983.5491 | F67: 8869139.377 | G67: 14.55838217 | H67: 0.09408927616 | I67: 27.03149364
A68: 61 | B68: 9494759.262 | C68: 0.995301 | D68: 0.004699000157 | E68: 559870.6047 | F68: 8280155.828 | G68: 14.28940984 | H68: 0.1019903158 | I68: 26.14330857
A69: 62 | B69: 9450143.388 | C69: 0.994819 | D69: 0.005181000102 | E69: 531971.1362 | F69: 7720285.223 | G69: 14.01260172 | H69: 0.1105776812 | I69: 25.26201478
A70: 63 | B70: 9401182.196 | C70: 0.994268 | D70: 0.005731999874 | E70: 505217.1709 | F70: 7188314.087 | G70: 13.72816662 | H70: 0.1199109904 | I70: 24.38837093
A71: 64 | B71: 9347294.619 | C71: 0.993653 | D71: 0.006347000133 | E71: 479542.9682 | F71: 6683096.916 | G71: 13.4363881 | H71: 0.1300550399 | I71: 23.52320595
A72: 65 | B72: 9287967.34 | C72: 0.992983 | D72: 0.007017000113 | E72: 454891.9355 | F72: 6203553.948 | G72: 13.13742345 | H72: 0.141080255 | I72: 22.66707386
A73: 66 | B73: 9222793.673 | C73: 0.992266 | D73: 0.007734000217 | E73: 431217.1386 | F73: 5748662.013 | G73: 12.8312466 | H73: 0.1530631782 | I73: 21.82018611
A74: 67 | B74: 9151464.587 | C74: 0.991509 | D74: 0.008491000161 | E74: 408479.3312 | F74: 5317444.874 | G74: 12.51765957 | H74: 0.1660870011 | I74: 20.98246449
A75: 68 | B75: 9073759.501 | C75: 0.990712 | D75: 0.009287999943 | E75: 386645.277 | F75: 4908965.543 | G75: 12.19630288 | H75: 0.1802421418 | I75: 20.15358861
A76: 69 | B76: 8989482.423 | C76: 0.989837 | D76: 0.01016299985 | E76: 365684.1149 | F76: 4522320.266 | G76: 11.86673971 | H76: 0.1956268725 | I76: 19.33315495
A77: 70 | B77: 8898122.313 | C77: 0.988835 | D77: 0.01116499957 | E77: 345553.8543 | F77: 4156636.151 | G77: 11.52890982 | H77: 0.2123480018 | I77: 18.52138782
A78: 71 | B78: 8798774.778 | C78: 0.987661 | D78: 0.01233899966 | E78: 326201.1846 | F78: 3811082.297 | G78: 11.18322642 | H78: 0.2305216163 | I78: 17.71922294
A79: 72 | B79: 8690206.696 | C79: 0.986266 | D79: 0.0137339998 | E79: 307566.7625 | F79: 3484881.112 | G79: 10.8304867 | H79: 0.2502738866 | I79: 16.92809875
A80: 73 | B80: 8570855.397 | C80: 0.984609 | D80: 0.01539099962 | E80: 289587.2424 | F80: 3177314.35 | G80: 10.47187267 | H80: 0.271741943 | I80: 16.1499015
A81: 74 | B81: 8438941.361 | C81: 0.982674 | D81: 0.01732599922 | E81: 272200.6695 | F81: 2887727.107 | G81: 10.10881706 | H81: 0.2950748277 | I81: 15.38671848
A82: 75 | B82: 8292728.263 | C82: 0.980449 | D82: 0.01955099963 | E82: 255355.1475 | F82: 2615526.438 | G82: 9.742701049 | H82: 0.3204345295 | I82: 14.64037767
A83: 76 | B83: 8130597.133 | C83: 0.977925 | D83: 0.02207499929 | E83: 239009.7333 | F83: 2360171.29 | G83: 9.374791531 | H83: 0.3479971084 | I83: 13.91237858
A84: 77 | B84: 7951114.201 | C84: 0.97509 | D84: 0.02490999922 | E84: 223134.6924 | F84: 2121161.557 | G84: 9.006193476 | H84: 0.3779539179 | I84: 13.20385365
A85: 78 | B85: 7753051.947 | C85: 0.971926 | D85: 0.02807400003 | E85: 207710.1711 | F85: 1898026.864 | G85: 8.637861929 | H85: 0.4105129334 | I85: 12.51561769
A86: 79 | B86: 7535392.766 | C86: 0.968388 | D86: 0.03161200136 | E86: 192724.4993 | F86: 1690316.693 | G86: 8.27063736 | H86: 0.4459001963 | I86: 11.84824533
A87: 80 | B87: 7297183.93 | C87: 0.96442 | D87: 0.03558000177 | E87: 178169.0595 | F87: 1497592.194 | G87: 7.905456021 | H87: 0.4843613829 | I87: 11.2023748
A88: 81 | B88: 7037550.126 | C88: 0.95997 | D88: 0.04002999887 | E88: 164037.9972 | F88: 1319423.135 | G88: 7.54339944 | H88: 0.5261635106 | I88: 10.57876734
A89: 82 | B89: 6755836.994 | C89: 0.954983 | D89: 0.04501700029 | E89: 150330.8391 | F89: 1155385.137 | G89: 7.185616232 | H89: 0.5715967909 | I89: 9.978194465
A90: 83 | B90: 6451709.48 | C90: 0.9494 | D90: 0.05059999973 | E90: 137053.3592 | F90: 1005054.298 | G90: 6.833306561 | H90: 0.6209766449 | I90: 9.401418104
A91: 84 | B91: 6125252.981 | C91: 0.943135 | D91: 0.05686499923 | E91: 124218.0978 | F91: 868000.9391 | G91: 6.487717203 | H91: 0.6746458928 | I91: 8.849186964
A92: 85 | B92: 5776940.47 | C92: 0.936093 | D92: 0.06390699744 | E92: 111841.9418 | F92: 743782.8413 | G92: 6.150303356 | H92: 0.7329771338 | I92: 8.322442667
A93: 86 | B93: 5407753.535 | C93: 0.928185 | D93: 0.07181499898 | E93: 99946.97608 | F93: 631940.8994 | G93: 5.82276157 | H93: 0.7963753333 | I93: 7.822345287
A94: 87 | B94: 5019395.715 | C94: 0.919318 | D94: 0.08068200201 | E94: 88562.56107 | F94: 531993.9233 | G94: 5.506984406 | H94: 0.8652806338 | I94: 7.350199892
A95: 88 | B95: 4614420.83 | C95: 0.909443 | D95: 0.09055700153 | E95: 77725.20803 | F95: 443431.3623 | G95: 5.205116442 | H95: 0.9401714112 | I95: 6.907511755
A96: 89 | B96: 4196552.723 | C96: 0.898693 | D96: 0.1013069972 | E96: 67481.28439 | F96: 365706.1542 | G96: 4.919371572 | H96: 1 | I96: 6.495747128
A97: 90 | B97: 3771412.556 | C97: 0.887241 | D97: 0.1127590016 | E97: 57894.9471 | F97: 298224.8698 | G97: 4.651138136 | H97: 1 | I97: 6.115266424
A98: 91 | B98: 3346151.848 | C98: 0.875267 | D98: 0.124733001 | E98: 49037.48931 | F98: 240329.9228 | G98: 4.400942648 | H98: 1 | I98: 5.765362989
A99: 92 | B99: 2928776.289 | C99: 0.862946 | D99: 0.1370539963 | E99: 40974.60198 | F99: 191292.4334 | G99: 4.168561113 | H99: 1 | I99: 5.44446779
A100: 93 | B100: 2527375.784 | C100: 0.850448 | D100: 0.1495520025 | E100: 33755.48296 | F100: 150317.8315 | G100: 3.953138225 | H100: 1 | I100: 5.150342883
A101: 94 | B101: 2149401.681 | C101: 0.837921 | D101: 0.1620790064 | E101: 27405.52036 | F101: 116562.3485 | G101: 3.753243397 | H101: 1 | I101: 4.880184189
A102: 95 | B102: 1801028.806 | C102: 0.825508 | D102: 0.1744920015 | E102: 21922.34913 | F102: 89156.82814 | G102: 3.5669377 | H102: 1 | I102: 4.630727944
A103: 96 | B103: 1486763.687 | C103: 0.813353 | D103: 0.1866469979 | E103: 17276.44328 | F103: 67234.47901 | G103: 3.391685223 | H103: 1 | I103: 4.398174147
A104: 97 | B104: 1209263.705 | C104: 0.801597 | D104: 0.1984030008 | E104: 13414.65086 | F104: 49958.03573 | G104: 3.224139841 | H104: 1 | I104: 4.177981942
A105: 98 | B105: 969342.1584 | C105: 0.789663 | D105: 0.2103369981 | E105: 10265.53102 | F105: 36543.38487 | G105: 3.059814373 | H105: 1 | I105: 3.964563169
A106: 99 | B106: 765453.6368 | C106: 0.776973 | D106: 0.2230270058 | E106: 7738.720678 | F106: 26277.85385 | G106: 2.895632811 | H106: 1 | I106: 3.754213087
A107: 100 | B107: 594736.8086 | C107: 0.762949 | D107: 0.2370509952 | E107: 5740.121183 | F107: 18539.13317 | G107: 2.729745955 | H107: 1 | I107: 3.544798966
A108: 101 | B108: 453753.8534 | C108: 0.747015 | D108: 0.2529850006 | E108: 4180.830221 | F108: 12799.01199 | G108: 2.561356552 | H108: 1 | I108: 3.335477163
A109: 102 | B109: 338960.9348 | C109: 0.728594 | D109: 0.2714059949 | E109: 2981.520616 | F109: 8618.18177 | G109: 2.390532343 | H109: 1 | I109: 3.126412673
A110: 103 | B110: 246964.9033 | C110: 0.707107 | D110: 0.2928929925 | E110: 2073.811935 | F110: 5636.661154 | G110: 2.21801944 | H110: 1 | I110: 2.918515212
A111: 104 | B111: 174630.6119 | C111: 0.681977 | D111: 0.3180229962 | E111: 1399.911137 | F111: 3562.849219 | G111: 2.045053843 | H111: 1 | I111: 2.713189393
A112: 105 | B112: 119094.0608 | C112: 0.652627 | D112: 0.3473730087 | E112: 911.4149731 | F112: 2162.938082 | G112: 1.873164965 | H112: 1 | I112: 2.512092627
A113: 106 | B113: 77723.99962 | C113: 0.61848 | D113: 0.3815200031 | E113: 567.8415384 | F113: 1251.523109 | G113: 1.704000631 | H113: 1 | I113: 2.316932378
A114: 107 | B114: 48070.73928 | C114: 0.578958 | D114: 0.4210419953 | E114: 335.273155 | F114: 683.6815708 | G114: 1.539177788 | H114: 1 | I114: 2.129304711
A115: 108 | B115: 27830.93907 | C115: 0.533484 | D115: 0.4665159881 | E115: 185.3069906 | F115: 348.4084158 | G115: 1.380168766 | H115: 1 | I115: 1.950581409
A116: 109 | B116: 14847.3607 | C116: 0.48148 | D116: 0.5185199976 | E116: 94.37547801 | F116: 163.1014252 | G116: 1.228218268 | H116: 1 | I116: 1.781836772
A117: 110 | B117: 7148.70723 | C117: 0.422369 | D117: 0.5776309967 | E117: 43.3793838 | F117: 68.72594718 | G117: 1.084299756 | H117: 1 | I117: 1.623819831
A118: 111 | B118: 3019.392324 | C118: 0.355573 | D118: 0.6444270015 | E118: 17.49127132 | F118: 25.34656337 | G118: 0.9490978335 | H118: 1 | I118: 1.476954585
A119: 112 | B119: 1073.614387 | C119: 0.280516 | D119: 0.7194839716 | E119: 5.937397357 | F119: 7.855292055 | G119: 0.8230194278 | H119: 1 | I119: 1.341368959
A120: 113 | B120: 301.1660134 | C120: 0.19662 | D120: 0.8033800125 | E120: 1.590009484 | F120: 1.917894697 | G120: 0.7062158853 | H120: 1 | I120: 1.216932222
A121: 114 | B121: 59.21526155 | C121: 0.103307 | D121: 0.8966929913 | E121: 0.2984512272 | F121: 0.3278852133 | G121: 0.598622433 | H121: 1 | I121: 1.103307
A122: 115 | B122: 6.117351024 | C122: 0 | D122: 1 | E122: 0.02943398616 | F122: 0.02943398616 | G122: 0.5 | H122: 1 | I122: 1
B125: (*) 1996 US Annuity 2000 Basic Table, Male and Female - Fonte: site do Society of Actuaries SOA (17/06/2002)

Sheet Plan1
